bitfinex-derivatives/quotes_BNBF0:USTF0_20250510
["timestamp","ask_amount","ask_price","bid_price","bid_amount"]
[1746917985950,0.25169088,657.67,657.06,1.0073862]
[1746917986256,0.25169088,657.66,657.06,1.0073862]
[1746917986556,0.25169088,657.65,657.06,1.0073862]
[1746917986856,0.25169088,657.64,657.06,1.0073862]
[1746917987256,1.98425899,657.73,657.06,1.0073862]
[1746917987257,0.25169088,657.72,657.06,1.0073862]
[1746917987557,0.25169088,657.71,657.06,1.0073862]
[1746917987953,0.25169088,657.7,657.06,1.0073862]
[1746917988360,0.25169088,657.69,657.06,1.0073862]
[1746917988658,0.25169088,657.68,657.06,1.0073862]
[1746917988959,0.25169088,657.67,657.06,1.0073862]
[1746917989258,0.25169088,657.66,657.06,1.0073862]
[1746917989560,0.25169088,657.65,657.06,1.0073862]
[1746917989959,0.25169088,657.64,657.06,1.0073862]
[1746917990259,0.25169088,657.89,657.06,1.0073862]
[1746917990659,0.25169088,657.88,657.06,1.0073862]
[1746917990960,0.25169088,657.87,657.06,1.0073862]
[1746917991258,0.25169088,657.86,657.06,1.0073862]
[1746917991863,0.25169088,657.85,657.06,1.0073862]
[1746917992158,0.25169088,657.84,657.06,1.0073862]
[1746917992660,0.25169088,657.83,657.06,1.0073862]
[1746917992960,0.25169088,657.82,657.06,1.0073862]
[1746917993261,0.25169088,657.81,657.06,1.0073862]
[1746917993563,0.25169088,657.8,657.06,1.0073862]
[1746917993965,0.25169088,657.79,657.06,1.0073862]
[1746917994362,0.25169088,657.78,657.06,1.0073862]
[1746917994763,0.25169088,657.77,657.06,1.0073862]
[1746917995063,0.25169088,657.76,657.06,1.0073862]
[1746917995365,0.25169088,657.75,657.06,1.9623862]
[1746917995564,0.25169088,657.74,657.06,1.9623862]
[1746917995957,1.98425899,657.88,657.06,1.9623862]
[1746917996465,0.25164445,657.87,657.06,1.9623862]
[1746917996766,0.25164445,657.86,657.06,1.9623862]
[1746917997264,0.25164445,657.85,657.06,1.9623862]
[1746917997461,0.25164445,657.84,657.06,1.9623862]
[1746917997660,0.25164445,657.84,657.06,1.2593862]
[1746917997861,0.25164445,657.83,657.06,1.2593862]
[1746917998163,0.25164445,657.82,657.06,1.2593862]
[1746917998567,0.25164445,657.81,657.06,1.2593862]
[1746917999069,0.25164445,657.8,657.06,1.2593862]
[1746917999261,0.25164445,657.79,657.06,1.2593862]
[1746917999566,0.25164445,657.78,657.06,1.2593862]
[1746917999966,0.25164445,657.77,657.06,1.2593862]
[1746918000471,0.25164445,657.76,657.06,1.2593862]
[1746918000767,0.25164445,657.75,657.06,1.2593862]
[1746918001268,0.25164445,657.74,657.06,1.2593862]
[1746918001468,0.25164445,657.73,657.06,1.2593862]
[1746918001768,0.25164445,657.72,657.06,1.2593862]
[1746918002167,0.25164445,657.71,657.06,1.2593862]
[1746918002368,0.25164445,657.7,657.06,1.2593862]
[1746918002768,0.25164445,657.69,657.06,1.2593862]
[1746918003165,0.25164445,657.84,657.06,1.2593862]
[1746918003670,0.25164445,657.83,657.06,1.2593862]
[1746918003969,0.25164445,657.82,657.06,1.2593862]
[1746918004266,0.25164445,657.81,657.06,1.2593862]
[1746918004570,0.25164445,657.8,657.06,1.2593862]
[1746918004966,1.98425899,657.92,657.06,1.2593862]
[1746918005277,0.25166817,657.91,657.06,1.2593862]
[1746918005678,0.25166817,657.9,657.06,1.2593862]
[1746918006173,0.25166817,657.89,657.06,1.2593862]
[1746918006974,0.25166817,657.88,657.06,1.2593862]
[1746918007173,1.98425899,657.72,657.06,1.2593862]
[1746918007672,0.25166817,657.71,657.06,1.2593862]
[1746918008073,0.25166817,657.7,657.06,1.2593862]
[1746918008572,0.25166817,657.69,657.06,1.2593862]
[1746918008872,0.25166817,657.68,657.06,1.2593862]
[1746918009173,1.98425899,657.64,657.06,1.2593862]
[1746918009473,0.25166817,657.63,657.06,1.2593862]
[1746918009873,0.25166817,657.62,657.06,1.2593862]
[1746918010074,1.98425899,657.64,657.06,1.2593862]
[1746918010374,0.25166925,657.63,657.06,1.2593862]
[1746918010774,0.25166925,657.62,657.06,1.2593862]
[1746918011277,0.25166925,657.61,657.06,1.2593862]
[1746918011676,0.25166925,657.6,657.06,1.2593862]
[1746918012073,0.25166925,657.59,657.06,1.2593862]
[1746918012476,0.25166925,657.58,657.06,1.2593862]
[1746918012878,0.25166925,657.57,657.06,1.2593862]
[1746918013177,0.25166925,657.56,657.06,1.2593862]
[1746918013373,0.25166925,657.56,657.06,0.3043862]
[1746918013577,0.25166925,657.69,657.06,0.3043862]
[1746918013876,1.98425899,657.7,657.06,0.3043862]
[1746918014078,1.98425899,657.77,657.06,0.3043862]
[1746918014276,0.25168347,657.69,657.06,0.3043862]
[1746918014574,0.25168347,657.68,657.06,0.3043862]
[1746918014878,0.25168347,657.67,657.06,0.3043862]
[1746918015178,0.25168347,657.66,657.06,0.3043862]
[1746918015478,0.25168347,657.65,657.06,0.3043862]
[1746918015779,0.25168347,657.64,657.06,0.3043862]
[1746918016280,0.25168347,657.63,657.06,0.3043862]
[1746918016689,1.98425899,657.81,657.06,0.3043862]
[1746918017284,0.25168268,657.8,657.06,0.3043862]
[1746918017582,0.25168268,657.79,657.06,0.3043862]
[1746918017982,0.25168268,657.78,657.06,0.3043862]
[1746918018282,0.25168268,657.77,657.06,0.3043862]
[1746918018783,0.25168268,657.76,657.06,0.3043862]
[1746918018981,0.25168268,657.75,657.06,0.3043862]
[1746918019482,0.25168268,657.74,657.06,0.3043862]
[1746918019884,0.25168268,657.73,657.06,0.3043862]
[1746918020289,0.25168268,657.72,657.06,0.3043862]
[1746918020684,0.25168268,657.71,657.06,0.3043862]
[1746918020984,0.25168268,657.7,657.06,0.3043862]
[1746918021389,0.25168268,657.69,657.06,0.3043862]
[1746918021791,0.25168268,657.68,657.06,0.3043862]
[1746918022090,0.25168268,657.67,657.06,0.3043862]
[1746918022391,0.25168268,657.66,657.06,0.3043862]
[1746918022691,0.25168268,657.65,657.06,0.3043862]
[1746918022992,0.25168268,657.78,657.06,0.3043862]
[1746918023691,0.25168268,657.77,657.06,0.3043862]
[1746918024093,0.25168268,657.76,657.06,0.3043862]
[1746918024491,0.30372057,658.5,657.06,0.3043862]
[1746918024492,0.25168268,657.75,657.06,0.3043862]
[1746918024786,0.25168268,657.74,657.06,0.3043862]
[1746918025095,0.25168268,657.73,657.06,0.3043862]
[1746918025491,0.25168268,657.92,657.06,0.3043862]
[1746918027693,0.25168268,658.49,657.06,0.3043862]
[1746918027996,0.25168268,658.48,657.06,0.3043862]
[1746918028500,0.25168268,658.47,657.06,0.3043862]
[1746918028987,0.30372057,658.5,657.06,0.3043862]
[1746918028988,0.25168268,658.46,657.06,0.3043862]
[1746918029394,0.25168268,658.45,657.06,0.3043862]
[1746918029695,0.25168268,658.44,657.06,0.3043862]
[1746918030195,0.25168268,658.43,657.06,0.3043862]
[1746918030494,0.30372057,658.5,657.06,0.3043862]
[1746918030795,0.25160012,658.49,657.06,0.3043862]
[1746918031090,0.25160012,658.48,657.06,0.3043862]
[1746918031495,0.25160012,658.47,657.06,0.3043862]
[1746918031696,1.98425899,657.71,657.06,0.3043862]
[1746918031895,0.25160012,657.7,657.06,0.3043862]
[1746918032395,0.25160012,657.69,657.06,0.3043862]
[1746918032796,0.25160012,657.68,657.06,0.3043862]
[1746918033096,0.25160012,657.67,657.06,0.3043862]
[1746918033497,0.25160012,657.66,657.06,0.3043862]
[1746918033792,0.25160012,657.65,657.06,0.3043862]
[1746918034197,0.25160012,657.7,657.06,0.3043862]
[1746918034495,0.25160012,657.69,657.06,0.3043862]
[1746918034900,0.25160012,657.68,657.06,0.3043862]
[1746918035300,0.25160012,657.67,657.06,0.3043862]
[1746918035699,0.25160012,657.66,657.06,0.3043862]
[1746918035999,0.25160012,657.65,657.06,0.3043862]
[1746918036393,0.25160012,657.64,657.06,0.3043862]
[1746918036700,0.25160012,657.91,657.06,0.3043862]
[1746918037001,0.25160012,657.9,657.06,0.3043862]
[1746918037296,0.25160012,657.89,657.06,0.3043862]
[1746918037602,0.25160012,657.88,657.06,0.3043862]
[1746918037901,0.25160012,657.87,657.06,0.3043862]
[1746918038197,0.25160012,657.86,657.06,0.3043862]
[1746918038601,0.25160012,657.85,657.06,0.3043862]
[1746918039001,0.25160012,657.84,657.06,0.3043862]
[1746918039401,0.25160012,657.83,657.06,0.3043862]
[1746918040003,0.25160012,658.09,657.06,0.3043862]
[1746918040503,0.25160012,658.08,657.06,0.3043862]
[1746918040805,0.25160012,658.07,657.06,0.3043862]
[1746918041195,0.25160012,658.06,657.06,0.3043862]
[1746918041505,0.25160012,658.05,657.06,0.3043862]
[1746918041905,0.25160012,658.04,657.06,0.3043862]
[1746918042205,0.25160012,658.03,657.06,0.3043862]
[1746918043207,0.25160012,658.02,657.06,0.3043862]
[1746918043707,0.25160012,658.23,657.06,0.3043862]
[1746918043908,0.25160012,658.22,657.06,0.3043862]
[1746918044409,0.25160012,658.21,657.06,0.3043862]
[1746918044708,0.25160012,658.2,657.06,0.3043862]
[1746918045108,0.25160012,658.19,657.06,0.3043862]
[1746918046109,0.25160012,658.18,657.06,0.3043862]
[1746918046409,0.25160012,658.17,657.06,0.3043862]
[1746918046810,0.25160012,658.16,657.06,0.3043862]
[1746918047309,0.25160012,658.15,657.06,0.3043862]
[1746918047704,0.25160012,658.14,657.06,0.3043862]
[1746918048209,0.25160012,658.13,657.06,0.3043862]
[1746918048611,0.25160012,658.12,657.06,0.3043862]
[1746918048911,0.25160012,658.11,657.06,0.3043862]
[1746918049512,0.25160012,658.1,657.06,0.3043862]
[1746918050211,1.98425899,657.86,657.06,0.3043862]
[1746918050710,0.25160012,657.85,657.06,0.3043862]
[1746918051010,0.25160012,657.84,657.06,0.3043862]
[1746918051411,0.25160012,657.83,657.06,0.3043862]
[1746918051812,0.25160012,657.82,657.06,0.3043862]
[1746918052310,0.25160012,657.81,657.06,0.3043862]
[1746918052611,0.25160012,657.8,657.06,0.3043862]
[1746918053107,0.25160012,657.79,657.06,0.3043862]
[1746918053305,0.25160012,657.78,657.06,0.3043862]
[1746918053713,0.25160012,657.77,657.06,0.3043862]
[1746918054114,0.25160012,657.76,657.06,0.3043862]
[1746918054512,0.25160012,657.75,657.06,0.3043862]
[1746918055013,0.25160012,657.74,657.06,0.3043862]
[1746918055511,0.25160012,657.73,657.06,0.3043862]
[1746918056013,0.25160012,657.72,657.06,0.3043862]
[1746918056812,0.25160012,657.71,657.06,0.3043862]
[1746918057206,0.25160012,657.99,657.06,0.3043862]
[1746918057514,0.25160012,657.98,657.06,0.3043862]
[1746918057911,0.25160012,657.97,657.06,0.3043862]
[1746918058212,0.25160012,657.96,657.06,0.3043862]
[1746918058812,0.25160012,657.95,657.06,0.3043862]
[1746918059109,0.25160012,657.94,657.06,0.3043862]
[1746918059508,0.25160012,657.93,657.06,0.3043862]
[1746918059914,0.25160012,657.92,657.06,0.3043862]
[1746918060215,1.98425899,657.99,657.06,0.3043862]
[1746918060910,0.2516405,657.98,657.06,0.3043862]
[1746918061317,0.2516405,657.97,657.06,0.3043862]
[1746918061514,0.2516405,657.96,657.06,0.3043862]
[1746918061714,0.2516405,657.95,657.06,0.3043862]
[1746918061911,0.2516405,657.94,657.06,0.3043862]
[1746918062213,0.2516405,657.93,657.06,0.3043862]
[1746918062518,0.2516405,657.92,657.06,0.3043862]
[1746918062714,0.2516405,657.91,657.06,0.3043862]
[1746918063117,0.2516405,657.9,657.06,0.3043862]
[1746918063312,0.2516405,657.89,657.06,0.3043862]
[1746918063617,0.2516405,657.88,657.06,0.3043862]
[1746918063810,0.2516405,657.87,657.06,0.3043862]
[1746918064117,0.2516405,657.86,657.06,0.3043862]
[1746918064318,0.2516405,657.85,657.06,0.3043862]
[1746918064613,0.2516405,657.84,657.06,0.3043862]
[1746918064817,0.2516405,657.83,657.06,0.3043862]
[1746918065216,0.2516405,657.82,657.06,0.3043862]
[1746918065417,0.2516405,657.81,657.06,0.3043862]
[1746918065620,0.2516405,657.8,657.06,0.3043862]
[1746918065821,0.2516405,657.79,657.06,0.3043862]
[1746918066020,0.2516405,657.78,657.06,0.3043862]
[1746918066320,0.2516405,657.77,657.06,0.3043862]
[1746918066517,0.2516405,657.98,657.06,0.3043862]
[1746918066714,0.2516405,657.97,657.06,0.3043862]
[1746918067019,0.2516405,657.96,657.06,0.3043862]
[1746918067319,0.30372057,658.5,657.06,0.3043862]
[1746918067320,0.2516405,657.95,657.06,0.3043862]
[1746918067620,0.2516405,657.94,657.06,0.3043862]
[1746918067919,0.2516405,657.93,657.06,0.3043862]
[1746918068219,0.2516405,657.92,657.06,0.3043862]
[1746918068419,0.2516405,657.91,657.06,0.3043862]
[1746918068619,0.2516405,657.9,657.06,0.3043862]
[1746918068817,1.98425899,658.05,657.06,0.3043862]
[1746918068818,0.2516405,657.89,657.06,0.3043862]
[1746918069218,0.2516405,657.88,657.06,0.3043862]
[1746918069616,0.2516405,657.87,657.06,0.3043862]
[1746918070815,0.2516405,658.02,657.06,0.3043862]
[1746918073023,0.2516405,658.01,657.06,0.3043862]
[1746918073322,0.2516405,658.0,657.06,0.3043862]
[1746918073822,1.98425899,658.37,657.06,0.3043862]
[1746918073823,0.2516405,657.99,657.06,0.3043862]
[1746918074225,0.2516405,657.98,657.06,0.3043862]
[1746918074420,0.2516405,657.97,657.06,0.3043862]
[1746918074825,0.2516405,657.96,657.06,0.3043862]
[1746918075326,0.2516405,657.95,657.06,0.3043862]
[1746918076025,0.2516405,657.94,657.06,0.3043862]
[1746918076427,0.2516405,657.93,657.06,0.3043862]
[1746918076723,0.2516405,657.92,657.06,0.3043862]
[1746918077029,0.2516405,657.91,657.06,0.3043862]
[1746918077428,0.2516405,657.9,657.06,0.3043862]
[1746918077629,1.98425899,658.32,657.06,0.3043862]
[1746918077929,2.28806261,658.32,657.06,0.3043862]
[1746918078132,1.98425899,657.89,657.06,0.3043862]
[1746918078630,0.25168244,657.88,657.06,0.3043862]
[1746918080634,0.25168244,658.31,657.06,0.3043862]
[1746918081131,0.25168244,658.3,657.06,0.3043862]
[1746918081431,0.25168244,658.29,657.06,0.3043862]
[1746918081732,0.25168244,658.29,657.01,0.30440936]
[1746918081932,0.25168244,658.28,657.01,0.30440936]
[1746918082227,0.25168244,658.27,657.01,0.30440936]
[1746918082432,0.25168244,658.27,657.02,1.062]
[1746918082633,0.25168244,658.26,657.02,1.062]
[1746918082827,0.25168244,658.26,657.03,0.3044001]
[1746918083336,0.25168244,658.25,657.03,0.3044001]
[1746918083736,0.25168244,658.24,657.03,0.3044001]
[1746918084037,0.30380362,658.32,657.03,0.3044001]
[1746918084038,0.25168244,658.23,657.03,0.3044001]
[1746918084537,0.25168244,658.22,657.03,0.3044001]
[1746918084737,0.25168244,658.21,657.03,0.3044001]
[1746918085038,0.25168244,658.2,657.03,0.3044001]
[1746918085739,1.98425899,658.25,657.03,0.3044001]
[1746918085740,0.25168244,658.19,657.03,0.3044001]
[1746918086039,0.25168244,658.18,657.03,0.3044001]
[1746918086441,0.25168244,658.17,657.03,0.3044001]
[1746918086841,1.98425899,657.93,657.03,0.3044001]
[1746918087242,0.25168244,657.92,657.03,0.3044001]
[1746918087742,0.25168244,657.91,657.03,0.3044001]
[1746918088237,0.25168244,657.9,657.03,0.3044001]
[1746918088643,0.25168244,657.89,657.03,0.3044001]
[1746918089038,0.25168244,657.88,657.03,0.3044001]
[1746918089343,0.25168244,657.87,657.03,0.3044001]
[1746918089841,0.25168244,657.86,657.03,0.3044001]
[1746918090343,0.25168244,657.85,657.03,0.3044001]
[1746918090742,0.25168244,657.84,657.03,0.3044001]
[1746918091239,0.25168244,658.02,657.03,0.3044001]
[1746918091639,0.25168244,658.01,657.03,0.3044001]
[1746918091840,0.25168244,658.0,657.04,0.796]
[1746918092143,0.25168244,658.0,657.05,0.30439083]
[1746918092342,0.25168244,657.99,657.05,0.30439083]
[1746918092643,0.25168244,658.05,657.05,0.30439083]
[1746918092943,0.25168244,658.04,657.05,0.30439083]
[1746918093238,0.25168244,658.03,657.05,0.30439083]
[1746918093642,0.25168244,658.05,657.05,0.30439083]
[1746918094740,0.25168244,658.29,657.05,0.30439083]
[1746918095041,0.25168244,658.28,657.05,0.30439083]
[1746918095543,0.25168244,658.27,657.05,0.30439083]
[1746918095845,0.25168244,658.26,657.05,0.30439083]
[1746918096246,0.25168244,658.25,657.05,0.30439083]
[1746918096846,0.25168244,658.24,657.05,0.30439083]
[1746918097142,0.25168244,658.31,657.05,0.30439083]
[1746918097447,0.25168244,658.3,657.05,0.30439083]
[1746918097747,0.25168244,658.29,657.05,0.30439083]
[1746918098055,0.25168244,658.28,657.05,0.30439083]
[1746918098550,0.25168244,658.27,657.05,0.30439083]
[1746918099452,0.25168244,658.26,657.05,0.30439083]
[1746918099751,0.25168244,658.25,657.05,0.30439083]
[1746918100049,0.25168244,658.24,657.05,0.30439083]
[1746918100350,0.25168244,658.23,657.05,0.30439083]
[1746918100651,1.98425899,658.19,657.05,0.30439083]
[1746918100951,0.25168244,658.18,657.05,0.30439083]
[1746918101453,0.25168244,658.17,657.05,0.30439083]
[1746918101754,0.25168244,658.16,657.05,0.30439083]
[1746918102053,0.25168244,658.15,657.05,0.30439083]
[1746918102555,0.25168244,658.14,657.05,0.30439083]
[1746918102853,0.25168244,658.13,657.05,0.30439083]
[1746918103054,0.25168244,658.12,657.05,0.30439083]
[1746918103353,0.25168244,658.11,657.05,0.30439083]
[1746918103653,0.25168244,658.1,657.05,0.30439083]
[1746918104053,0.25168244,658.09,657.05,0.30439083]
[1746918104453,0.25168244,658.08,657.05,0.30439083]
[1746918104756,0.25168244,658.07,657.05,0.30439083]
[1746918105149,0.25168244,658.06,657.05,0.30439083]
[1746918105956,1.98425899,657.99,657.05,0.30439083]
[1746918106255,0.25168244,657.98,657.05,0.30439083]
[1746918106655,0.25168244,657.97,657.05,0.30439083]
[1746918107255,0.25168244,657.96,657.05,0.30439083]
[1746918107656,0.25168244,657.95,657.05,0.30439083]
[1746918107955,0.25168244,657.94,657.05,0.30439083]
[1746918108556,0.25168244,657.93,657.05,0.30439083]
[1746918108757,1.98425899,657.72,657.05,0.30439083]
[1746918109456,0.25168244,657.71,657.05,0.30439083]
[1746918109656,0.25168244,657.7,657.05,0.30439083]
[1746918109956,0.25168244,657.69,657.05,0.30439083]
[1746918110356,0.25168244,657.68,657.05,0.30439083]
[1746918110857,0.25168244,657.67,657.05,0.30439083]
[1746918111158,0.25168244,657.66,657.05,0.30439083]
[1746918111559,0.25168244,657.71,657.05,0.30439083]
[1746918112254,0.25168244,657.7,657.05,0.30439083]
[1746918112655,0.25168244,657.69,657.05,0.30439083]
[1746918112955,0.25168244,657.68,657.05,0.30439083]
[1746918113363,0.25168244,657.92,657.05,0.30439083]
[1746918113760,0.25168244,657.91,657.05,0.30439083]
[1746918114060,0.25168244,657.9,657.05,0.30439083]
[1746918114457,0.25168244,657.89,657.05,0.30439083]
[1746918114762,0.25168244,657.88,657.05,0.30439083]
[1746918115062,0.25168244,657.87,657.05,0.30439083]
[1746918115362,0.25168244,657.86,657.05,0.30439083]
[1746918115662,0.25168244,657.85,657.05,0.30439083]
[1746918115962,0.25168244,657.84,657.05,0.30439083]
[1746918116362,0.25168244,657.83,657.05,0.30439083]
[1746918116763,0.25168244,657.82,657.05,0.30439083]
[1746918117062,0.25168244,657.81,657.05,0.30439083]
[1746918117458,0.25168244,657.8,657.05,0.30439083]
[1746918117759,0.25168244,657.79,657.05,0.30439083]
[1746918118059,0.25168244,657.78,657.05,0.30439083]
[1746918118566,0.25168244,657.77,657.05,0.30439083]
[1746918118762,0.25168244,657.76,657.05,0.30439083]
[1746918119064,0.25168244,657.75,657.05,0.30439083]
[1746918119358,0.25168244,657.74,657.05,0.30439083]
[1746918119863,0.25168244,657.73,657.05,0.30439083]
[1746918120163,1.98425899,657.95,657.05,0.30439083]
[1746918120465,0.25171975,657.94,657.05,0.30439083]
[1746918120863,0.25171975,657.93,657.05,0.30439083]
[1746918121562,0.25171975,657.92,657.05,0.30439083]
[1746918121865,0.25171975,657.91,657.05,0.30439083]
[1746918122063,0.25171975,657.9,657.05,0.30439083]
[1746918122364,0.25171975,657.89,657.05,0.30439083]
[1746918122558,0.25171975,657.88,657.05,0.30439083]
[1746918122865,0.25171975,657.87,657.05,0.30439083]
[1746918123569,0.25171975,657.86,657.05,0.30439083]
[1746918124067,0.25171975,657.85,657.05,0.30439083]
[1746918124366,0.25171975,657.84,657.05,0.30439083]
[1746918124870,0.25171975,657.83,657.05,0.30439083]
[1746918125368,0.25171975,657.82,657.05,0.30439083]
[1746918125571,0.25171975,657.81,657.05,0.30439083]
[1746918125871,0.25171975,657.8,657.05,0.30439083]
[1746918126170,0.25171975,657.79,657.05,0.30439083]
[1746918126672,1.98425899,658.0,657.05,0.30439083]
[1746918126971,0.25171975,657.78,657.05,0.30439083]
[1746918127166,0.25171975,657.99,657.05,0.30439083]
[1746918127576,0.25171975,657.98,657.05,0.30439083]
[1746918127871,0.25171975,657.97,657.05,0.30439083]
[1746918128072,0.25171975,657.96,657.05,0.30439083]
[1746918128369,0.25171975,657.95,657.05,0.30439083]
[1746918128872,0.25171975,657.94,657.05,0.30439083]
[1746918129175,0.25171975,657.93,657.05,0.30439083]
[1746918129572,0.25171975,657.92,657.05,0.30439083]
[1746918129874,0.25171975,657.91,657.05,0.30439083]
[1746918130372,0.25171975,657.9,657.05,0.30439083]
[1746918130774,1.98425899,658.21,657.05,0.30439083]
[1746918131074,0.2515847,658.2,657.05,0.30439083]
[1746918131476,0.2515847,658.19,657.05,0.30439083]
[1746918131973,0.2515847,658.18,657.05,0.30439083]
[1746918132269,0.30380362,658.32,657.05,0.30439083]
[1746918132270,0.2515847,658.17,657.05,0.30439083]
[1746918132675,0.2515847,658.16,657.05,0.30439083]
[1746918132974,0.2515847,658.15,657.05,0.30439083]
[1746918133273,0.2515847,658.14,657.05,0.30439083]
[1746918133770,0.2515847,658.13,657.05,0.30439083]
[1746918134174,0.2515847,658.12,657.05,0.30439083]
[1746918134569,0.2515847,658.11,657.05,0.30439083]
[1746918134773,0.2515847,658.11,657.06,0.982]
[1746918135069,0.2515847,658.1,657.06,0.982]
[1746918135271,0.2515847,658.09,657.06,0.982]
[1746918135677,0.2515847,658.08,657.06,0.982]
[1746918136077,0.2515847,658.07,657.06,0.982]
[1746918136277,0.2515847,658.06,657.06,1.357]
[1746918136778,0.2515847,658.05,657.08,0.30437694]
[1746918137477,0.26470722,658.04,657.08,0.30437694]
[1746918137676,0.51629192,658.04,657.08,0.30437694]
[1746918138179,0.2515847,658.03,657.08,0.30437694]
[1746918138475,0.2515847,658.02,657.08,0.30437694]
[1746918138880,0.2515847,658.03,657.08,0.30437694]
[1746918139179,0.2515847,658.03,657.09,0.958]
[1746918139382,0.2515847,658.03,657.11,0.30436304]
[1746918139582,0.2515847,658.55,657.11,0.30436304]
[1746918140280,0.2515847,658.54,657.11,0.30436304]
[1746918140482,0.5162577,658.54,657.11,0.30436304]
[1746918140880,0.2515847,658.53,657.11,0.30436304]
[1746918141078,0.2515847,658.53,657.12,1.24034323]
[1746918141280,0.2515847,658.53,657.14,0.30434914]
[1746918141476,0.2515847,658.53,657.15,1.24034323]
[1746918141783,0.2515847,658.53,657.17,0.30433525]
[1746918141981,0.2515847,658.53,657.18,1.24034323]
[1746918142178,0.2515847,658.53,657.2,0.30432136]
[1746918142677,0.26459049,658.52,657.2,0.30432136]
[1746918142985,0.26459049,658.52,657.21,1.23700992]
[1746918143183,0.26459049,658.52,657.23,0.30430747]
[1746918143583,0.2513057,658.51,657.23,0.30430747]
[1746918143785,0.2513057,658.51,657.24,1.23700992]
[1746918144180,0.26452412,658.5,657.26,0.30429358]
[1746918144384,0.2513057,658.49,657.26,0.30429358]
[1746918144586,0.2513057,658.49,657.27,1.23700992]
[1746918145187,0.2513057,658.49,657.29,0.30427969]
[1746918145482,1.98425899,659.38,657.3,1.23700992]
[1746918145686,1.98425899,659.38,657.4,0.30422878]
[1746918145888,0.25116334,659.37,657.41,1.23700992]
[1746918146182,0.25116334,659.36,657.41,1.23700992]
[1746918146390,0.25116334,659.36,657.42,1.23700992]
[1746918146584,0.25116334,659.35,657.42,1.23700992]
[1746918146786,0.25116334,659.34,657.42,1.23700992]
[1746918147187,0.25116334,659.35,657.43,1.23700992]
[1746918147789,0.25116334,659.35,657.44,1.23700992]
[1746918148386,0.25116334,659.35,657.45,1.23700992]
[1746918148584,0.26437441,659.34,657.45,1.23700992]
[1746918148890,0.26437441,659.34,657.46,1.23700992]
[1746918149083,0.25116334,659.33,657.46,1.23700992]
[1746918149286,0.25116334,659.32,657.46,1.23700992]
[1746918149484,0.25116334,659.32,657.47,1.23700992]
[1746918149689,0.25116334,659.31,657.48,1.23700992]
[1746918150091,0.25116334,659.3,657.48,1.23700992]
[1746918150289,0.25116334,659.3,657.49,1.23700992]
[1746918150490,0.25116334,659.29,657.49,1.23700992]
[1746918150687,0.25116334,659.29,657.5,1.23700992]
[1746918150887,0.25116334,659.28,657.5,1.23700992]
[1746918151091,0.25116334,659.27,657.47,0.994]
[1746918151391,0.25116334,659.26,657.47,0.994]
[1746918151588,0.25116334,659.26,657.48,1.22486514]
[1746918151789,0.25116334,659.25,657.48,1.22486514]
[1746918152291,0.25116334,659.25,657.47,0.994]
[1746918152292,0.25116334,659.25,657.49,1.22486514]
[1746918152490,0.25116334,659.24,657.49,1.22486514]
[1746918152691,0.25116334,659.23,657.47,0.994]
[1746918153186,0.25116334,659.22,657.48,1.22438292]
[1746918153588,0.25116334,659.21,657.48,1.22438292]
[1746918153893,0.25116334,659.21,657.49,1.22438292]
[1746918154087,0.25116334,659.2,657.49,1.22438292]
[1746918154492,0.25116334,659.19,657.49,1.22438292]
[1746918154697,0.25116334,659.18,657.5,1.22438292]
[1746918155196,0.25116334,659.17,657.5,0.375]
[1746918155494,0.5155488,659.17,657.5,0.375]
[1746918155690,0.25116334,659.16,657.5,0.375]
[1746918155890,0.25116334,659.15,657.5,0.375]
[1746918156295,0.25116334,659.14,657.5,0.375]
[1746918156497,0.25116334,659.14,657.51,1.22206571]
[1746918156795,0.25116334,659.13,657.52,2.33206571]
[1746918157189,0.25116334,659.12,657.53,1.22206571]
[1746918157595,0.51551767,659.11,657.53,1.22206571]
[1746918157897,0.25116334,659.1,657.54,1.22206571]
[1746918158596,0.25116334,659.09,657.55,1.22206571]
[1746918158989,0.25116334,659.09,657.56,1.22206571]
[1746918159190,0.25116334,659.08,657.56,1.22206571]
[1746918159495,0.25116334,659.07,657.56,1.22206571]
[1746918159694,0.25116334,659.07,657.54,0.798]
[1746918159991,0.25116334,659.06,657.54,0.798]
[1746918160188,0.25116334,659.06,657.55,1.21872744]
[1746918160389,0.25116334,659.05,657.55,1.21872744]
[1746918160797,0.25116334,659.04,657.55,1.21872744]
[1746918161096,0.25116334,660.08,657.54,0.798]
[1746918161500,0.26434328,660.07,657.55,1.031]
[1746918161692,0.51550662,660.07,657.55,1.031]
[1746918162099,0.25116334,660.06,657.55,1.031]
[1746918162294,1.98425899,659.97,657.55,1.031]
[1746918162799,0.25116334,659.96,657.55,1.031]
[1746918163202,0.25116334,659.95,657.55,1.031]
[1746918163400,0.25116334,659.95,657.56,1.21799105]
[1746918163599,0.25116334,659.94,657.56,1.21799105]
[1746918163800,0.25116334,659.94,657.55,1.031]
[1746918164406,0.25116334,659.93,657.55,1.031]
[1746918164706,1.98425899,659.88,657.55,1.031]
[1746918164903,1.98425899,659.88,657.56,1.2172473]
[1746918165205,1.98425899,659.88,657.57,1.2172473]
[1746918165405,0.25116334,659.87,657.57,1.2172473]
[1746918165705,0.25116334,659.86,657.58,1.2172473]